lending/lending_fUSD_20240509
["ID","MTS","AMOUNT","RATE_DAILY","PERIOD"]
[326729219,1715285450753,-500.0,0.00041095,30]
[326729220,1715285450762,-1713.68,0.00041095,30]
[326729221,1715285450771,-887.11,0.00041095,30]
[326729222,1715285450780,-500.0,0.00041095,30]
[326729223,1715285450936,-538.9084096,0.00041095,30]
[326729224,1715285450946,-500.0,0.00041095,30]
[326729225,1715285450955,-500.0,0.00041095,30]
[326729226,1715285450964,-500.0,0.00041095,30]
[326729227,1715285450974,-226.94491937,0.00041095,30]
[326729228,1715285450983,-500.0,0.00041095,30]
[326729229,1715285450992,-514.55594688,0.00041095,30]
[326729230,1715285451001,-500.0,0.00041095,30]
[326729231,1715285451010,-844.41,0.00041095,30]
[326729232,1715285451019,-536.92,0.00041095,30]
[326729233,1715285451028,-500.0,0.00041095,30]
[326729234,1715285451038,-500.0,0.00041095,30]
[326729235,1715285451046,-500.0,0.00041095,30]
[326729236,1715285451055,-500.0,0.00041095,30]
[326729237,1715285451064,-500.0,0.00041095,30]
[326729238,1715285451074,-500.0,0.00041095,30]
[326729239,1715285451082,-500.0,0.00041095,30]
[326729240,1715285451092,-500.0,0.00041095,30]
[326729241,1715285451101,-500.0,0.00041095,30]
[326729242,1715285451110,-500.0,0.00041095,30]
[326729243,1715285451119,-500.0,0.00041095,30]
[326729244,1715285451128,-500.0,0.00041095,30]
[326729245,1715285451137,-500.0,0.00041095,30]
[326729246,1715285451146,-500.0,0.00041095,30]
[326729247,1715285451156,-500.0,0.00041095,30]
[326729248,1715285451165,-500.0,0.00041095,30]
[326729249,1715285451174,-500.0,0.00041095,30]
[326729250,1715285451183,-500.0,0.00041095,30]
[326729251,1715285451193,-500.0,0.00041095,30]
[326729252,1715285451203,-500.0,0.00041095,30]
[326729253,1715285451212,-500.0,0.00041095,30]
[326729254,1715285451221,-543.69,0.00041095,30]
[326729255,1715285451230,-1448.45,0.00041095,30]
[326729256,1715285451239,-541.06,0.00041095,30]
[326729257,1715285451248,-500.0,0.00041095,30]
[326729258,1715285451258,-500.0,0.00041095,30]
[326729259,1715285451267,-500.0,0.00041095,30]
[326729260,1715285451277,-500.0,0.00041095,30]
[326729261,1715285451291,-504.26,0.00041095,30]
[326729262,1715285451300,-503.55804525,0.00041095,30]
[326729263,1715285451310,-500.0,0.00041095,30]
[326729264,1715285451320,-1920.29,0.00041095,30]
[326729265,1715285451331,-500.0,0.00041095,30]
[326729266,1715285451341,-300.0,0.00041095,7]
[326729267,1715285451351,-500.0,0.00041095,30]
[326729268,1715285451363,-500.0,0.00041095,30]
[326729269,1715285451373,-500.0,0.00041095,30]
[326729270,1715285451382,-500.0,0.00041095,30]
[326729271,1715285451392,-500.0,0.00041095,30]
[326729272,1715285451402,-500.0,0.00041095,30]
[326729273,1715285451411,-1448.71,0.00041095,30]
[326729274,1715285451422,-2604.68,0.00041095,30]
[326729275,1715285451432,-500.0,0.00041095,30]
[326729276,1715285451442,-500.0,0.00041095,30]
[326729277,1715285451451,-563.7,0.00041095,30]
[326729278,1715285451462,-500.0,0.00041095,30]
[326729279,1715285451471,-500.0,0.00041095,30]
[326729280,1715285451481,-500.0,0.00041095,30]
[326729281,1715285451490,-500.0,0.00041095,30]
[326729282,1715285451500,-500.0,0.00041095,30]
[326729283,1715285451509,-500.0,0.00041095,30]
[326729284,1715285451518,-738.67,0.00041095,30]
[326729285,1715285451528,-500.0,0.00041095,30]
[326729286,1715285451537,-500.0,0.00041095,30]
[326729287,1715285451547,-500.0,0.00041095,30]
[326729288,1715285451558,-500.0,0.00041095,30]
[326729289,1715285451568,-500.0,0.00041095,30]
[326729290,1715285451578,-592.17,0.00041095,30]
[326729291,1715285451588,-500.0,0.00041095,30]
[326729292,1715285451598,-500.0,0.00041095,30]
[326729293,1715285451608,-500.0,0.00041095,30]
[326729294,1715285451619,-500.0,0.00041095,30]
[326729295,1715285451628,-543.81,0.00041095,30]
[326729296,1715285451638,-500.0,0.00041095,30]
[326729297,1715285451648,-2960.2,0.00041095,30]
[326729298,1715285451658,-500.0,0.00041095,30]
[326729299,1715285451667,-500.0,0.00041095,30]
[326729300,1715285451677,-1246.24,0.00041095,30]
[326729301,1715285451687,-500.39869837,0.00041095,30]
[326729302,1715285451696,-501.15,0.00041095,30]
[326729303,1715285451706,-500.0,0.00041095,2]
[326729304,1715285451715,-500.0,0.00041095,30]
[326729305,1715285451725,-500.0,0.00041095,30]
[326729306,1715285451735,-500.0,0.00041095,30]
[326729307,1715285451745,-500.0,0.00041095,30]
[326729308,1715285451754,-500.0,0.00041095,30]
[326729309,1715285451764,-500.0,0.00041095,30]
[326729310,1715285451774,-500.0,0.00041095,30]
[326729311,1715285451783,-509.93,0.00041095,30]
[326729312,1715285451793,-500.0,0.00041095,30]
[326729313,1715285451803,-500.0,0.00041095,30]
[326729314,1715285451813,-3270.31,0.00041095,30]
[326729315,1715285451822,-500.0,0.00041095,30]
[326729316,1715285451832,-500.0,0.00041095,30]
[326729317,1715285451842,-2792.58,0.00041095,30]
[326729318,1715285451852,-500.0,0.00041095,30]
[326729319,1715285451862,-500.0,0.00041095,30]
[326729320,1715285451872,-500.0,0.00041095,30]
[326729321,1715285451882,-500.0,0.00041095,30]
[326729322,1715285451892,-500.0,0.00041095,30]
[326729323,1715285451903,-590.58,0.00041095,30]
[326729324,1715285451913,-500.0,0.00041095,30]
[326729325,1715285451928,-500.0,0.00041095,30]
[326729326,1715285451951,-3073.35,0.00041095,30]
[326729327,1715285451969,-1093.37,0.00041095,30]
[326729328,1715285451990,-500.0,0.00041095,30]
[326729329,1715285452014,-500.0,0.00041095,30]
[326729330,1715285452033,-500.0,0.00041095,30]
[326729331,1715285452052,-500.0,0.00041095,30]
[326729332,1715285452068,-500.0,0.00041095,30]
[326729333,1715285452085,-500.0,0.00041095,30]
[326729334,1715285452105,-500.0,0.00041095,30]
[326729335,1715285452123,-732.8,0.00041095,30]
[326729336,1715285452135,-505.8887582,0.00041095,30]
[326729337,1715285452155,-505.64,0.00041095,30]
[326729338,1715285452170,-2600.29,0.00041095,30]
[326729339,1715285452187,-630.26,0.00041095,30]
[326729340,1715285452202,-505.26034864,0.00041095,30]
[326729341,1715285452217,-500.0,0.00041095,30]
[326729342,1715285452233,-1869.71,0.00041095,30]
[326729343,1715285452249,-500.0,0.00041095,30]
[326729344,1715285452265,-901.46,0.00041095,30]
[326729345,1715285452282,-500.0,0.00041095,30]
[326729346,1715285452301,-500.0,0.00041095,30]
[326729347,1715285452317,-500.0,0.00041095,30]
[326729348,1715285452333,-500.0,0.00041095,30]
[326729349,1715285452348,-713.67,0.00041095,30]
[326729350,1715285452363,-500.0,0.00041095,30]
[326729351,1715285452379,-500.0,0.00041095,30]
[326729352,1715285452395,-666.22,0.00041095,30]
[326729353,1715285452410,-500.0,0.00041095,30]
[326729354,1715285452426,-500.96159603,0.00041095,30]
[326729355,1715285452446,-867.76,0.00041095,30]
[326729356,1715285452462,-500.0,0.00041095,30]
[326729357,1715285452476,-686.05,0.00041095,30]
[326729358,1715285452491,-662.29,0.00041095,30]
[326729359,1715285452506,-1317.51,0.00041095,30]
[326729360,1715285452520,-500.0,0.00041095,30]
[326729361,1715285452534,-500.0,0.00041095,30]
[326729362,1715285452549,-1087.59,0.00041095,30]
[326729363,1715285452564,-2441.92,0.00041095,30]
[326729364,1715285452578,-706.71,0.00041095,30]
[326729365,1715285452594,-500.0,0.00041095,30]
[326729366,1715285452608,-2565.87,0.00041095,30]
[326729367,1715285452624,-500.0,0.00041095,30]
[326729368,1715285452639,-500.0,0.00041095,31]
[326729369,1715285452654,-899.45,0.00041095,30]
[326729370,1715285452669,-500.0,0.00041095,32]
[326729371,1715285452682,-500.0,0.00041095,33]
[326729372,1715285452697,-500.0,0.00041095,30]
[326729373,1715285452713,-500.0,0.00041095,34]
[326729374,1715285452728,-500.0,0.00041095,35]
[326729375,1715285452743,-500.0,0.00041095,30]
[326729376,1715285452757,-500.0,0.00041095,30]
[326729377,1715285452772,-1552.39,0.00041095,30]
[326729378,1715285452787,-7289.17,0.00041095,30]
[326729379,1715285452802,-517.1,0.00041095,30]
[326729380,1715285452817,-2037.94,0.00041095,30]
[326729381,1715285452832,-1208.05,0.00041095,30]
[326729382,1715285452847,-503.04123482,0.00041095,30]
[326729383,1715285452863,-500.0,0.00041095,30]
[326729384,1715285452877,-712.9,0.00041095,30]
[326729385,1715285452892,-500.0,0.00041095,30]
[326729386,1715285452908,-3526.68,0.00041095,30]
[326729387,1715285452924,-500.0,0.00041095,30]
[326729388,1715285452939,-500.0,0.00041095,30]
[326729389,1715285452954,-500.0,0.00041095,30]
[326729390,1715285452969,-500.0,0.00041095,30]
[326729391,1715285452984,-500.0,0.00041095,30]
[326729392,1715285452999,-531.24,0.00041095,30]
[326729393,1715285453015,-1360.69,0.00041095,30]
[326729394,1715285453030,-837.27,0.00041095,30]
[326729395,1715285453046,-503.32064672,0.00041095,30]
[326729396,1715285453061,-500.0,0.00041095,30]
[326729397,1715285453075,-500.0,0.00041095,30]
[326729398,1715285453090,-935.79,0.00041095,7]
[326729399,1715285453105,-713.39,0.00041095,30]
[326729400,1715285453121,-467.93959678,0.00041095,30]
[326729401,1715285453136,-9904.89,0.00041095,30]
[326729402,1715285453152,-204.47398242,0.00041095,30]
[326729403,1715285453168,-500.0,0.00041095,30]
[326729404,1715285453183,-500.0,0.00041095,30]
[326729405,1715285453197,-500.0,0.00041095,30]
[326729406,1715285453212,-500.0,0.00041095,30]
[326729407,1715285453227,-500.0,0.00041095,30]
[326729408,1715285453243,-2747.93,0.00041095,30]
[326729409,1715285453258,-1999.03,0.00041095,30]
[326729410,1715285453273,-500.0,0.00041095,30]
[326729411,1715285453291,-500.0,0.00041095,30]
[326729412,1715285453306,-1631.88,0.00041095,30]
[326729413,1715285453320,-501.77139113,0.00041095,30]
[326729414,1715285453335,-500.0,0.00041095,30]
[326729415,1715285453351,-750.0,0.00041095,30]
[326729416,1715285453366,-1547.88,0.00041095,30]
[326729417,1715285453382,-500.0,0.00041095,30]
[326729418,1715285453398,-500.0,0.00041095,30]
[326729419,1715285453411,-500.0,0.00041095,30]
[326729420,1715285453422,-2184.92,0.00041095,30]
[326729421,1715285453431,-500.0,0.00041095,30]
[326729422,1715285453441,-547.64,0.00041095,30]
[326729423,1715285453450,-547.64,0.00041095,31]
[326729424,1715285453460,-547.64,0.00041095,32]
[326729425,1715285453469,-500.0,0.00041095,30]
[326729426,1715285453746,-500.0,0.00041095,30]
[326729427,1715285453778,-547.64,0.00041095,33]
[326729428,1715285453791,-547.64,0.00041095,34]
[326729429,1715285453801,-547.64,0.00041095,35]
[326729430,1715285453810,-500.0,0.00041095,30]
[326729431,1715285453819,-500.0,0.00041095,30]
[326729432,1715285453829,-1422.59,0.00041095,30]
[326729433,1715285453838,-500.0,0.00041095,30]
[326729434,1715285453848,-500.0,0.00041095,30]
[326729435,1715285453858,-2042.05,0.00041095,30]
[326729436,1715285453868,-547.64,0.00041095,36]
[326729437,1715285453877,-520.98,0.00041095,30]
[326729438,1715285453886,-547.64,0.00041095,37]
[326729439,1715285453897,-547.64,0.00041095,38]
[326729440,1715285453907,-500.0,0.00041095,30]
[326729441,1715285453916,-500.0,0.00041095,30]
[326729442,1715285453925,-547.64,0.00041095,39]
[326729443,1715285453935,-509.96,0.00041095,30]
[326729444,1715285453944,-547.64,0.00041095,40]
[326729445,1715285453954,-547.64,0.00041095,41]
[326729446,1715285453963,-547.64,0.00041095,42]
[326729447,1715285453972,-547.64,0.00041095,43]
[326729448,1715285453982,-956.3,0.00041095,30]
[326729449,1715285453991,-547.64,0.00041095,44]
[326729450,1715285454000,-547.64,0.00041095,45]
[326729451,1715285454009,-500.0,0.00041095,30]
[326729452,1715285454020,-547.64,0.00041095,46]
[326729453,1715285454029,-547.64,0.00041095,47]
[326729454,1715285454039,-500.0,0.00041095,30]
[326729455,1715285454048,-547.64,0.00041095,48]
[326729456,1715285454057,-547.64,0.00041095,49]
[326729457,1715285454066,-547.64,0.00041095,49]
[326729458,1715285454076,-547.64,0.00041095,49]
[326729459,1715285454086,-536.58,0.00041095,30]
[326729460,1715285454095,-500.0,0.00041095,30]
[326729461,1715285454106,-547.64,0.00041095,49]
[326729462,1715285454115,-500.0,0.00041095,30]
[326729463,1715285454125,-547.79891453,0.00041095,49]
[326729464,1715285454134,-2986.25,0.00041095,30]
[326729465,1715285454144,-500.0,0.00041095,30]
[326729466,1715285454153,-2908.34,0.00041095,30]
[326729467,1715285454163,-4364.77,0.00041095,30]
[326729468,1715285454172,-500.0,0.00041095,30]
[326729469,1715285454181,-500.0,0.00041095,30]
[326729470,1715285454191,-547.41,0.00041095,30]
[326729471,1715285454200,-5502.74,0.00041095,30]
[326729472,1715285454209,-500.0,0.00041095,30]
[326729473,1715285454218,-523.16127176,0.00041095,30]
[326729474,1715285454227,-500.0,0.00041095,30]
[326729475,1715285454237,-500.0,0.00041095,30]
[326729476,1715285454246,-500.0,0.00041095,30]
[326729477,1715285454256,-500.0,0.00041095,30]
[326729478,1715285454265,-951.25,0.00041095,30]
[326729479,1715285454274,-500.0,0.00041095,30]
[326729480,1715285454285,-500.0,0.00041095,30]
[326729481,1715285454297,-793.48,0.00041095,30]
[326729482,1715285454306,-500.0,0.00041095,30]
[326729483,1715285454315,-2945.27,0.00041095,30]
[326729484,1715285454325,-500.0,0.00041095,30]
[326729485,1715285454334,-500.0,0.00041095,30]
[326729486,1715285454344,-500.0,0.00041095,30]
[326729487,1715285454354,-500.0,0.00041095,30]
[326729488,1715285454363,-500.0,0.00041095,30]
[326729489,1715285454376,-4364.69,0.00041095,30]
[326729490,1715285454386,-793.44,0.00041095,30]
[326729491,1715285454395,-500.0,0.00041095,30]
[326729492,1715285454405,-500.0,0.00041095,30]
[326729493,1715285454415,-806.41,0.00041095,30]
[326729494,1715285454426,-500.0,0.00041095,30]
[326729495,1715285454435,-500.0,0.00041095,30]
[326729496,1715285454445,-502.81321546,0.00041095,30]
[326729497,1715285454454,-21078.15,0.00041095,30]
[326729498,1715285454463,-500.0,0.00041095,30]
[326729499,1715285454473,-500.0,0.00041095,30]
[326729500,1715285454483,-3234.02,0.00041095,30]
[326729501,1715285454492,-2080.89,0.00041095,30]
[326729502,1715285454501,-510.97,0.00041095,30]
[326729503,1715285454511,-6744.38,0.00041095,30]
[326729504,1715285454520,-3073.28,0.00041095,30]
[326729505,1715285454529,-500.0,0.00041095,30]
[326729506,1715285454539,-932.92,0.00041095,30]
[326729507,1715285454548,-500.0,0.00041095,30]
[326729508,1715285454557,-1131.17,0.00041095,30]
[326729509,1715285454567,-500.0,0.00041095,30]
[326729510,1715285454576,-523.4,0.00041095,30]
[326729511,1715285454585,-1016.85,0.00041095,30]
[326729512,1715285454595,-500.0,0.00041095,30]
[326729513,1715285454604,-755.17,0.00041095,30]
[326729514,1715285454614,-500.0,0.00041095,31]
[326729515,1715285454625,-500.0,0.00041095,32]
[326729516,1715285454634,-500.0,0.00041095,33]
[326729517,1715285454644,-500.0,0.00041095,34]
[326729518,1715285454653,-500.0,0.00041095,35]
[326729519,1715285454663,-500.0,0.00041095,30]
[326729520,1715285454672,-897.42,0.00041095,30]
[326729521,1715285454683,-500.0,0.00041095,30]
[326729522,1715285454692,-500.0,0.00041095,30]
[326729523,1715285454702,-1459.16,0.00041095,30]
[326729524,1715285454711,-4895.33,0.00041095,30]
[326729525,1715285454721,-3946.43,0.00041095,30]
[326729526,1715285454730,-500.0,0.00041095,30]
[326729527,1715285454740,-500.0,0.00041095,30]
[326729528,1715285454749,-500.0,0.00041095,30]
[326729529,1715285454759,-500.0,0.00041095,30]
[326729530,1715285454768,-525.63,0.00041095,30]
[326729531,1715285454777,-169.53326535,0.00041095,30]
[326729532,1715285454787,-614.4399929,0.00041095,2]
[326729533,1715285454797,-606.23,0.00041095,30]
[326729534,1715285454806,-599.91,0.00041095,30]
[326729535,1715285454815,-748.28,0.00041095,30]
[326729536,1715285454825,-500.0,0.00041095,30]
[326729537,1715285454834,-2910.28,0.00041095,30]
[326729538,1715285454843,-500.0,0.00041095,30]
[326729539,1715285454853,-500.0,0.00041095,30]
[326729540,1715285454862,-500.0,0.00041095,30]
[326729541,1715285454872,-500.0,0.00041095,30]
[326729542,1715285454881,-323.36952815,0.00041095,30]
[326729543,1715285454890,-500.0,0.00041095,30]
[326729544,1715285454900,-10857.28,0.00041095,30]
[326729545,1715285454909,-1080.88,0.00041095,30]
[326729546,1715285454918,-500.0,0.00041095,30]
[326729547,1715285454928,-500.0,0.00041095,30]
[326729548,1715285454937,-500.0,0.00041095,30]
[326729549,1715285454946,-1167.44,0.00041095,30]
[326729550,1715285454956,-505.20296445,0.00041095,30]
[326729551,1715285454965,-500.0,0.00041095,30]
[326729552,1715285454975,-500.0,0.00041095,30]
[326729553,1715285454985,-500.0,0.00041095,30]
[326729554,1715285454995,-1125.34,0.00041095,30]
[326729555,1715285455005,-500.0,0.00041095,30]
[326729556,1715285455014,-612.03,0.00041095,30]
[326729557,1715285455024,-500.0,0.00041095,30]
[326729558,1715285455034,-326.18721429,0.00041095,30]
[326729559,1715285455044,-500.0,0.00041095,30]
[326729560,1715285455053,-990.0,0.00041095,30]
[326729561,1715285455063,-3012.21,0.00041095,30]
[326729562,1715285455073,-512.59,0.00041095,30]
[326729563,1715285455082,-500.0,0.00041095,30]
[326729564,1715285455092,-2815.76,0.00041095,30]
[326729565,1715285455101,-500.0,0.00041095,30]
[326729566,1715285455111,-500.0,0.00041095,30]
[326729567,1715285455121,-500.0,0.00041095,30]
[326729568,1715285455131,-3015.14,0.00041095,30]
[326729569,1715285455141,-10897.56,0.00041095,30]
[326729570,1715285455151,-500.0,0.00041095,30]
[326729571,1715285455161,-618.25,0.00041095,30]
[326729572,1715285455170,-500.0,0.00041095,30]
[326729573,1715285455180,-500.0,0.00041095,30]
[326729574,1715285455190,-43806.25,0.00041095,30]
[326729575,1715285455199,-500.0,0.00041095,30]
[326729576,1715285455209,-500.0,0.00041095,30]
[326729577,1715285455218,-997.15,0.00041095,30]
[326729578,1715285455228,-2042.45,0.00041095,30]
[326729579,1715285455237,-2471.71,0.00041095,30]
[326729580,1715285455247,-19400.22,0.00041095,30]
[326729581,1715285455257,-1398.77,0.00041095,30]
[326729582,1715285455266,-500.0,0.00041095,30]
[326729583,1715285455276,-2702.44,0.00041095,30]
[326729584,1715285455289,-500.0,0.00041095,30]
[326729585,1715285455299,-789.24561149,0.00041095,30]
[326729586,1715285455880,-907.07438851,0.00041095,30]
[326729587,1715285455890,-500.0,0.00041095,30]
[326729588,1715285455899,-500.0,0.00041095,30]
[326729589,1715285455910,-500.0,0.00041095,30]
[326729590,1715285455919,-754.97,0.00041095,30]
[326729591,1715285455929,-592.86,0.00041095,30]
[326729592,1715285455938,-788.35,0.00041095,30]
[326729593,1715285455948,-500.0,0.00041095,30]
[326729594,1715285455957,-500.0,0.00041095,30]
[326729595,1715285455967,-720.59,0.00041095,30]
[326729596,1715285455976,-500.0,0.00041095,30]
[326729597,1715285455985,-1140.73,0.00041095,30]
[326729598,1715285455995,-500.0,0.00041095,30]
[326729599,1715285456004,-739.83,0.00041095,30]
[326729600,1715285456014,-500.0,0.00041095,30]
[326729601,1715285456023,-500.0,0.00041095,30]
[326729602,1715285456032,-3410.27,0.00041095,30]
[326729603,1715285456042,-500.0,0.00041095,30]
[326729604,1715285456051,-2343.58,0.00041095,30]
[326729605,1715285456060,-1321.78,0.00041095,30]
[326729606,1715285456069,-655.16,0.00041095,30]
[326729607,1715285456078,-500.0,0.00041095,30]
[326729608,1715285456087,-1868.93,0.00041095,30]
[326729609,1715285456097,-1772.75,0.00041095,30]
[326729610,1715285456106,-500.0,0.00041095,30]
[326729611,1715285456114,-1954.42,0.00041095,30]
[326729612,1715285456125,-500.0,0.00041095,30]
[326729613,1715285456135,-500.0,0.00041095,30]
[326729614,1715285456144,-500.0,0.00041095,30]
[326729615,1715285456153,-500.0,0.00041095,30]
[326729616,1715285456163,-3819.42,0.00041095,30]
[326729617,1715285456172,-500.0,0.00041095,30]
[326729618,1715285456181,-500.0,0.00041095,30]
[326729619,1715285456190,-2385.71,0.00041095,30]
[326729620,1715285456200,-500.0,0.00041095,30]
[326729621,1715285456209,-2139.36,0.00041095,30]
[326729622,1715285456219,-2983.89,0.00041095,30]
[326729623,1715285456228,-500.0,0.00041095,30]
[326729624,1715285456237,-500.0,0.00041095,30]
[326729625,1715285456246,-2840.21,0.00041095,30]
[326729626,1715285456255,-500.0,0.00041095,30]
[326729627,1715285456264,-500.0,0.00041095,30]
[326729628,1715285456273,-947.53,0.00041095,30]
[326729629,1715285456287,-500.0,0.00041095,30]
[326729630,1715285456296,-500.0,0.00041095,30]
[326729631,1715285456306,-523.31348965,0.00041095,30]
[326729632,1715285456315,-500.0,0.00041095,30]
[326729633,1715285456326,-500.0,0.00041095,30]
[326729634,1715285456335,-500.0,0.00041095,30]
[326729635,1715285456344,-517.58282365,0.00041095,30]
[326729636,1715285456353,-292.01764964,0.00041095,30]
[326729637,1715285456364,-500.0,0.00041095,30]
[326729638,1715285456374,-877.44,0.00041095,30]
[326729639,1715285456383,-4959.84,0.00041095,30]
[326729640,1715285456393,-2669.53,0.00041095,30]
[326729641,1715285456402,-500.0,0.00041095,30]
[326729642,1715285456411,-1170.6,0.00041095,30]
[326729643,1715285456422,-915.24,0.00041095,30]
[326729644,1715285456432,-617.56,0.00041095,30]
[326729645,1715285456441,-3952.34,0.00041095,30]
[326729646,1715285456450,-500.0,0.00041095,30]
[326729647,1715285456460,-8380.39,0.00041095,30]
[326729648,1715285456469,-3001.13,0.00041095,30]
[326729649,1715285456479,-500.0,0.00041095,30]
[326729650,1715285456693,-500.0,0.00041095,30]
[326729651,1715285456705,-509.86314975,0.00041095,30]
[326729652,1715285456715,-500.0,0.00041095,30]
[326729653,1715285456724,-4499.57,0.00041095,30]
[326729654,1715285456733,-500.0,0.00041095,30]
[326729655,1715285456742,-500.0,0.00041095,30]
[326729656,1715285456753,-500.0,0.00041095,30]
[326729657,1715285456763,-780.84,0.00041095,30]
[326729658,1715285456772,-500.0,0.00041095,30]
[326729659,1715285456781,-500.0,0.00041095,30]
[326729660,1715285456791,-4127.32,0.00041095,30]
[326729661,1715285456801,-521.56273162,0.00041095,30]
[326729662,1715285456810,-500.0,0.00041095,30]
[326729663,1715285456819,-501.53343121,0.00041095,30]
[326729664,1715285456829,-3436.5,0.00041095,30]
[326729665,1715285456839,-500.0,0.00041095,30]
[326729666,1715285456848,-4432.52,0.00041095,30]
[326729667,1715285456860,-508.14003043,0.00041095,30]
[326729668,1715285456872,-4957.49,0.00041095,30]
[326729669,1715285456882,-988.73,0.00041095,30]
[326729670,1715285456893,-500.0,0.00041095,30]
[326729671,1715285456902,-1608.34,0.00041095,30]
[326729672,1715285456911,-2000.0,0.00041095,30]
[326729673,1715285456920,-1994.41,0.00041095,30]
[326729674,1715285456929,-500.0,0.00041095,30]
[326729675,1715285456939,-500.0,0.00041095,30]
[326729676,1715285456948,-785.29,0.00041095,30]
[326729677,1715285456957,-500.0,0.00041095,30]
[326729678,1715285456967,-500.0,0.00041095,30]
[326729679,1715285456976,-2970.28,0.00041095,30]
[326729680,1715285456985,-500.0,0.00041095,30]
[326729681,1715285456995,-500.0,0.00041095,30]
[326729682,1715285457005,-500.0,0.00041095,30]
[326729683,1715285457014,-500.0,0.00041095,7]
[326729684,1715285457024,-500.0,0.00041095,30]
[326729685,1715285457034,-500.0,0.00041095,30]
[326729686,1715285457043,-614.73,0.00041095,30]
[326729687,1715285457052,-527.63,0.00041095,30]
[326729688,1715285457062,-501.04107864,0.00041095,30]
[326729689,1715285457071,-500.0,0.00041095,30]
[326729690,1715285457080,-3148.76,0.00041095,30]
[326729691,1715285457091,-3342.88,0.00041095,30]
[326729692,1715285457100,-500.0,0.00041095,30]
[326729693,1715285457109,-500.0,0.00041095,30]
[326729694,1715285457119,-500.0,0.00041095,30]
[326729695,1715285457128,-1469.83,0.00041095,30]
[326729696,1715285457137,-3078.72,0.00041095,21]
[326729697,1715285457146,-1272.46,0.00041095,30]
[326729698,1715285457155,-3582.61,0.00041095,30]
[326729699,1715285457165,-152.19860159,0.00041095,30]
[326729700,1715285457174,-500.0,0.00041095,30]
[326729701,1715285457184,-500.0,0.00041095,30]
[326729702,1715285457194,-500.0,0.00041095,30]
[326729703,1715285457203,-500.0,0.00041095,30]
[326729704,1715285457212,-722.21,0.00041095,30]
[326729705,1715285457222,-500.0,0.00041095,30]
[326729706,1715285457231,-450.23061603,0.00041095,30]
[326729707,1715285457240,-500.0,0.00041095,30]
[326729708,1715285457249,-2613.84,0.00041095,30]
[326729709,1715285457258,-5769.61,0.00041095,30]
[326729710,1715285457267,-28987.82,0.00041095,30]
[326729711,1715285457276,-1241.96,0.00041095,30]
[326729712,1715285457287,-500.0,0.00041095,30]
[326729713,1715285457298,-11087.13,0.00041095,30]
[326729714,1715285457308,-500.0,0.00041095,30]
[326729715,1715285457317,-501.3,0.00041095,30]
[326729716,1715285457326,-1726.84,0.00041095,30]
[326729717,1715285457336,-4339.54,0.00041095,30]
[326729718,1715285457345,-598.69,0.00041095,30]